bitfinex/quotes_BTCUSD_20250825
["timestamp","ask_amount","ask_price","bid_price","bid_amount"]
[1756103561352,4.06035115,112480.0,112470.0,0.00014445]
[1756103561566,4.06345115,112480.0,112470.0,0.00014445]
[1756103564166,8.78464826,112480.0,112470.0,0.00014445]
[1756103564384,8.88464826,112480.0,112470.0,0.00014445]
[1756103564592,8.88467096,112480.0,112470.0,0.00014445]
[1756103564799,8.87075347,112480.0,112470.0,0.00014445]
[1756103567179,8.8399473,112480.0,112470.0,1e-08]
[1756103567454,8.85882042,112480.0,112470.0,1e-08]
[1756103567690,8.88981444,112480.0,112470.0,1e-08]
[1756103568147,8.90373261,112480.0,112470.0,1e-08]
[1756103568372,8.7033846,112480.0,112470.0,1e-08]
[1756103568602,8.88119577,112480.0,112470.0,1e-08]
[1756103569096,2.15547778,112450.0,112440.0,0.00319]
[1756103569330,0.17787264,112440.0,112430.0,0.07429163]
[1756103569563,3.41076746,112440.0,112430.0,0.07642623]
[1756103569791,3.58534159,112440.0,112430.0,0.0001446]
[1756103570024,3.59360688,112440.0,112430.0,0.0001446]
[1756103570279,3.43880688,112440.0,112430.0,0.0001446]
[1756103570502,4.02047653,112440.0,112430.0,0.0001446]
[1756103570734,4.0204754,112440.0,112430.0,0.0001446]
[1756103571003,3.93360575,112440.0,112430.0,0.0001446]
[1756103571249,8.65479875,112440.0,112430.0,0.0001446]
[1756103571740,8.75479875,112440.0,112430.0,0.0001446]
[1756103571975,8.69508847,112440.0,112430.0,0.0001446]
[1756103572213,8.79508847,112440.0,112430.0,0.0001446]
[1756103572438,8.88195812,112440.0,112430.0,0.0001446]
[1756103573202,8.8416684,112440.0,112430.0,0.0011446]
[1756103573429,8.84677779,112440.0,112430.0,1e-08]
[1756103573896,2.59550942,112430.0,112420.0,0.012251]
[1756103574157,7.59452996,112430.0,112420.0,0.01229921]
[1756103574392,7.68139961,112430.0,112420.0,0.01229921]
[1756103575076,7.71220578,112430.0,112420.0,0.01229921]
[1756103575323,7.71420578,112430.0,112420.0,0.01229921]
[1756103575778,7.71620578,112430.0,112420.0,0.01229921]
[1756103576698,7.73012868,112430.0,112420.0,0.01229921]
[1756103576930,7.71359858,112430.0,112420.0,0.01229921]
[1756103577161,7.73010095,112430.0,112420.0,0.01229921]
[1756103577382,7.7187436,112430.0,112420.0,0.01428921]
[1756103577867,7.71874249,112430.0,112420.0,0.01229921]
[1756103578143,7.72184249,112430.0,112420.0,0.01229921]
[1756103578854,7.71874249,112430.0,112420.0,0.01428921]
[1756103579293,7.72184249,112430.0,112420.0,0.01229921]
[1756103581115,7.71874249,112430.0,112420.0,0.01428921]
[1756103581325,2.77782367,112430.0,112420.0,0.01747921]
[1756103581554,2.87987367,112430.0,112420.0,0.01428921]
[1756103581796,2.91067984,112430.0,112420.0,0.01428921]
[1756103582025,2.91066706,112430.0,112420.0,0.01428921]
[1756103582272,2.91376706,112430.0,112420.0,0.01229921]
[1756103582501,3.00063671,112430.0,112420.0,0.01229921]
[1756103583211,2.99753671,112430.0,112420.0,0.01428921]
[1756103583453,2.99753671,112430.0,112420.0,0.01229921]
[1756103583692,3.00063671,112430.0,112420.0,0.01229921]
[1756103583935,2.75381706,112430.0,112420.0,0.01747921]
[1756103584183,2.80861706,112430.0,112420.0,0.01747921]
[1756103585168,2.80861706,112430.0,112420.0,0.01751921]
[1756103585847,2.65381399,112430.0,112420.0,0.01751921]
[1756103586102,2.28300782,112430.0,112420.0,0.01751921]
[1756103586323,1.28027794,112430.0,112420.0,0.01751921]
[1756103586566,2.76388842,112430.0,112420.0,0.01751921]
[1756103586808,2.42388842,112430.0,112420.0,0.01751921]
[1756103587032,2.76188842,112430.0,112420.0,0.01751921]
[1756103587766,2.79269459,112430.0,112420.0,0.01751921]
[1756103587980,2.79269459,112430.0,112420.0,0.01851921]
[1756103588229,2.79474459,112430.0,112420.0,0.01532921]
[1756103588473,2.8469379,112430.0,112420.0,0.01333921]
[1756103589150,2.8438379,112430.0,112420.0,0.01333921]
[1756103589607,2.8438379,112430.0,112420.0,0.01537921]
[1756103590246,2.70296049,112430.0,112420.0,0.01437921]
[1756103590460,2.85776049,112430.0,112420.0,0.01233921]
[1756103590672,2.8468479,112430.0,112420.0,0.01233921]
[1756103590883,2.79575459,112430.0,112420.0,0.01233921]
[1756103591326,2.76193842,112430.0,112420.0,0.01739921]
[1756103591557,2.60508842,112430.0,112420.0,0.01739921]
[1756103591792,2.75988842,112430.0,112420.0,0.01739921]
[1756103592501,2.98268424,112430.0,112420.0,0.01233921]
[1756103592719,0.17792011,112410.0,112400.0,0.96808465]
[1756103592931,2.73739588,112410.0,112400.0,0.97059957]
[1756103593148,2.77440332,112410.0,112400.0,0.97059957]
[1756103593383,8.60105555,112410.0,112400.0,0.96855957]
[1756103593619,7.69911472,112410.0,112400.0,0.96855957]
[1756103593838,8.6879252,112410.0,112400.0,0.96855957]
[1756103594053,8.6879252,112410.0,112400.0,0.97059957]
[1756103594054,2.8572359,112410.0,112400.0,0.97059957]
[1756103594264,2.89644764,112410.0,112400.0,0.97361957]
[1756103594689,2.89644764,112410.0,112400.0,0.97561957]
[1756103594916,2.75732221,112410.0,112400.0,0.97259957]
[1756103595141,2.91268221,112410.0,112400.0,0.97059957]
[1756103595368,2.91268221,112410.0,112400.0,0.97259957]
[1756103595601,2.91273321,112410.0,112400.0,0.97259957]
[1756103595860,2.94353938,112410.0,112400.0,0.97059957]
[1756103596334,2.93733291,112410.0,112400.0,0.97059957]
[1756103596549,2.91273584,112410.0,112400.0,0.97059957]
[1756103596771,2.92506645,112410.0,112400.0,0.96855957]
[1756103596990,2.92506645,112410.0,112400.0,0.97059957]
[1756103597213,2.92295645,112410.0,112400.0,0.97361957]
[1756103597424,2.92506645,112410.0,112400.0,0.97361957]
[1756103597852,2.92506645,112410.0,112400.0,0.97059957]
[1756103598519,2.92295645,112410.0,112400.0,0.97361957]
[1756103598729,2.92506645,112410.0,112400.0,0.97361957]
[1756103598946,2.92506645,112410.0,112400.0,0.97059957]
[1756103599370,2.93335801,112410.0,112400.0,0.97059957]
[1756103600196,2.77588801,112410.0,112400.0,0.97059957]
[1756103600399,2.77588801,112410.0,112400.0,0.97361957]
[1756103600400,2.92299645,112410.0,112400.0,0.97361957]
[1756103600585,2.95591262,112410.0,112400.0,0.97059957]
[1756103600810,2.95591262,112410.0,112400.0,0.96855957]
[1756103601431,2.95892262,112410.0,112400.0,0.96855957]
[1756103601645,3.04579227,112410.0,112400.0,0.96855957]
[1756103601790,4.03460275,112410.0,112400.0,0.96855957]
[1756103601996,2.95895534,112410.0,112400.0,0.96855957]
[1756103603048,8.77724949,112410.0,112400.0,0.96855957]
[1756103603298,8.73628775,112410.0,112400.0,0.96855957]
[1756103603426,8.75538836,112410.0,112400.0,0.96855957]
[1756103603870,8.79637414,112410.0,112400.0,0.96855957]
[1756103604078,8.88324379,112410.0,112400.0,0.96855957]
[1756103605098,8.86666046,112410.0,112400.0,0.96855957]
[1756103605267,8.69676069,112410.0,112400.0,0.96855957]
[1756103605467,8.8643424,112410.0,112400.0,0.96855957]
[1756103605859,8.88343795,112410.0,112400.0,0.96855957]
[1756103606055,8.88343738,112410.0,112400.0,0.96855957]
[1756103606305,8.86434183,112410.0,112400.0,0.96855957]
[1756103608103,8.70874183,112410.0,112400.0,0.96855957]
[1756103608329,7.68611518,112410.0,112400.0,0.97059957]
[1756103608580,7.84163518,112410.0,112400.0,0.97059957]
[1756103608776,2.93154253,112410.0,112400.0,0.97361957]
[1756103609182,1.3602473,112410.0,112400.0,0.97361957]
[1756103609319,0.05566185,112410.0,112400.0,1.12921957]
[1756103609519,1.04725233,112410.0,112400.0,1.12921957]
[1756103609732,0.03908461,112410.0,112400.0,1.12921957]
[1756103609932,1.03067509,112410.0,112400.0,1.12921957]
[1756103610156,1.02789509,112410.0,112400.0,1.12921957]
[1756103610361,0.37908461,112410.0,112400.0,1.12921957]
[1756103610566,1.36789509,112410.0,112400.0,1.12921957]
[1756103610763,1.36789509,112410.0,112400.0,1.13021957]
[1756103611238,1.36789509,112410.0,112400.0,1.13121957]
[1756103611383,1.36789509,112410.0,112400.0,1.13021957]
[1756103611583,1.36789509,112410.0,112400.0,1.12921957]
[1756103611786,1.36789509,112410.0,112400.0,1.13221957]
[1756103611993,1.36789509,112410.0,112400.0,1.13621957]
[1756103612970,1.5458152,112410.0,112400.0,1.13621957]
[1756103613513,0.37908461,112410.0,112400.0,1.13621957]
[1756103613722,1.52349509,112410.0,112400.0,0.97555957]
[1756103613937,2.69022568,112410.0,112400.0,0.98061957]
[1756103614528,1.7014152,112410.0,112400.0,0.98061957]
[1756103614729,1.7014152,112410.0,112400.0,0.97661957]
[1756103615182,1.52349509,112410.0,112400.0,0.97561957]
[1756103615389,1.7014152,112410.0,112400.0,0.97361957]
[1756103615582,1.38181873,112410.0,112400.0,0.97561957]
[1756103615985,1.55973884,112410.0,112400.0,0.97561957]
[1756103616222,0.57092836,112410.0,112400.0,0.97561957]
[1756103616432,2.54854932,112410.0,112400.0,1.13137957]
[1756103616985,2.54854932,112410.0,112400.0,1.12937957]
[1756103617208,2.54854932,112410.0,112400.0,0.97561957]
[1756103617413,2.70430932,112410.0,112400.0,0.97961957]
[1756103617619,2.70430932,112410.0,112400.0,0.97761957]
[1756103618036,2.70430932,112410.0,112400.0,0.98061957]
[1756103618452,1.53757873,112410.0,112400.0,1.13325957]
[1756103618660,1.71549884,112410.0,112400.0,1.12925957]
[1756103618867,1.71549884,112410.0,112400.0,1.13125957]
[1756103619275,1.53757873,112410.0,112400.0,1.13125957]
[1756103619699,1.38181873,112410.0,112400.0,1.13125957]
[1756103619908,1.38181873,112410.0,112400.0,1.23559334]
[1756103620114,1.38181873,112410.0,112400.0,1.23759334]
[1756103620524,1.38181873,112410.0,112400.0,1.23755334]
[1756103620940,1.36789509,112410.0,112400.0,1.23755334]
[1756103622906,1.5458152,112410.0,112400.0,1.08195334]
[1756103623121,1.5458152,112410.0,112400.0,1.23751334]
[1756103623553,1.7013352,112410.0,112400.0,1.06450432]
[1756103623792,2.69218568,112410.0,112400.0,0.97459957]
[1756103624669,2.69014568,112410.0,112400.0,0.97760957]
[1756103625097,2.69218568,112410.0,112400.0,0.97459957]
[1756103625570,2.69218568,112410.0,112400.0,0.97760957]
[1756103625810,2.69218568,112410.0,112400.0,0.97459957]
[1756103626488,2.69218568,112410.0,112400.0,0.97760957]
[1756103626714,2.69539568,112410.0,112400.0,0.97255957]
[1756103627156,2.72620185,112410.0,112400.0,0.97255957]
[1756103627586,2.69539568,112410.0,112400.0,0.97255957]
[1756103629118,2.75776315,112410.0,112400.0,0.97255957]
[1756103629341,2.8446479,112410.0,112400.0,0.97255957]
[1756103629548,2.81384173,112410.0,112400.0,0.97255957]
[1756103630649,7.6658409,112410.0,112400.0,0.97255957]
[1756103632006,7.6658409,112410.0,112400.0,0.56909219]
[1756103632433,7.6658409,112410.0,112400.0,0.56709219]
[1756103633524,7.6658409,112410.0,112400.0,0.12306344]
[1756103633761,7.6658409,112410.0,112360.0,0.0004]
[1756103633762,0.1779816,112380.0,112360.0,0.0004]
[1756103633987,0.1868391,112400.0,112370.0,0.10642168]
[1756103634237,0.00278049,112390.0,112380.0,0.15812]
[1756103634675,0.026752,112390.0,112380.0,0.09183333]
[1756103634886,1.19629474,112390.0,112380.0,0.23137163]
[1756103635097,1.19351425,112390.0,112380.0,0.23434163]
[1756103635316,1.16676225,112390.0,112380.0,0.09969579]
[1756103635571,0.78705509,112390.0,112380.0,0.07110163]
[1756103635783,0.78705509,112390.0,112380.0,0.23149163]
[1756103635997,0.78705509,112390.0,112370.0,0.09089475]
[1756103635998,0.1779676,112380.0,112370.0,0.09089475]
[1756103636217,0.1779676,112380.0,112370.0,0.15924]
[1756103636218,0.76031992,112380.0,112370.0,0.15924]
[1756103636438,0.76031992,112380.0,112370.0,0.001]
[1756103636649,0.76031992,112380.0,112370.0,0.00215]
[1756103636891,0.76031992,112380.0,112370.0,0.16043]
[1756103637106,0.76031992,112380.0,112370.0,0.00215]
[1756103637316,0.76031992,112380.0,112370.0,0.16039]
[1756103637526,0.76031992,112380.0,112370.0,0.16035]
[1756103637739,0.76031992,112380.0,112370.0,0.00615]
[1756103637740,0.77424756,112380.0,112370.0,0.00615]
[1756103637962,1.11424756,112380.0,112370.0,0.004]
[1756103638225,1.11667756,112380.0,112370.0,0.004]
[1756103638649,1.20356231,112380.0,112370.0,0.007]
[1756103639278,1.31210108,112380.0,112370.0,0.004]
[1756103639502,1.31210108,112380.0,112370.0,0.005]
[1756103640072,1.30967108,112380.0,112370.0,0.005]
[1756103640275,0.61877999,112380.0,112370.0,0.00616]
[1756103640519,0.68997524,112380.0,112370.0,0.00716]
[1756103640724,0.69195524,112380.0,112370.0,0.002]
[1756103640946,0.68997524,112380.0,112370.0,0.00716]
[1756103641161,0.6760476,112380.0,112370.0,0.00716]
[1756103641386,0.6780276,112380.0,112370.0,0.002]
[1756103642083,0.6780276,112380.0,112370.0,0.00415]
[1756103642300,0.6780276,112380.0,112370.0,0.00716]
[1756103642927,0.6760476,112380.0,112370.0,0.00716]
[1756103643142,0.6780276,112380.0,112370.0,0.00716]
[1756103643374,0.5179676,112380.0,112370.0,0.00716]
[1756103644681,1.10025992,112380.0,112370.0,0.002]
[1756103644894,0.17798344,112370.0,112360.0,0.00341]
[1756103645103,0.17798344,112370.0,112360.0,0.00255]
[1756103645515,0.17798344,112370.0,112360.0,0.00556]
[1756103645729,0.21867058,112370.0,112360.0,0.00556]
[1756103645966,0.04068714,112370.0,112360.0,0.67275707]
[1756103646181,0.21867058,112370.0,112360.0,0.67323818]
[1756103646396,0.04068714,112370.0,112360.0,0.09492586]
[1756103646602,0.22145157,112370.0,112360.0,0.25392586]
[1756103646825,0.56065058,112370.0,112360.0,0.00503111]
[1756103647022,0.56065058,112370.0,112360.0,0.00288111]
[1756103647278,1.1409629,112370.0,112360.0,0.00288111]
[1756103647458,1.1409629,112370.0,112360.0,0.00588111]
[1756103647666,1.23033765,112370.0,112360.0,0.00588111]
[1756103647872,1.23033765,112370.0,112350.0,0.00144]
[1756103647873,1.0983116,112360.0,112350.0,0.00144]
[1756103648074,0.51801513,112350.0,112340.0,0.0018]
[1756103648279,1.1896822,112350.0,112340.0,0.0018]
[1756103648507,5.33056288,112350.0,112340.0,0.0018]
[1756103648935,1.17703278,112350.0,112340.0,0.0018]
[1756103649067,0.59672046,112350.0,112340.0,0.0018]
[1756103649431,0.75572046,112350.0,112340.0,0.0018]
[1756103649864,0.50784571,112350.0,112340.0,0.00694]
[1756103650093,0.5319477,112350.0,112340.0,0.00694]
[1756103650604,0.5339477,112350.0,112340.0,0.00694]
[1756103650863,0.1919477,112350.0,112340.0,0.00694]
[1756103651085,0.51801513,112350.0,112340.0,0.00694]
[1756103651297,0.51801513,112350.0,112340.0,0.00794]
[1756103651505,0.51801513,112350.0,112340.0,0.00694]
[1756103651710,1.10030745,112350.0,112340.0,0.00694]
[1756103651901,1.09832745,112350.0,112340.0,0.00794]
[1756103652105,0.51901513,112350.0,112340.0,0.00794]
[1756103652445,0.51801513,112350.0,112340.0,0.00794]
[1756103652855,0.51801513,112350.0,112340.0,0.00894]
[1756103653331,1.25937745,112350.0,112340.0,0.0038]
[1756103653635,1.25938745,112350.0,112340.0,0.00595]
[1756103653795,1.25938745,112350.0,112340.0,0.0038]
[1756103653796,1.10279745,112350.0,112340.0,0.0038]
[1756103654204,1.1896822,112350.0,112340.0,0.0028]
[1756103654634,1.1906822,112350.0,112340.0,0.0028]
[1756103654870,0.60687988,112350.0,112340.0,0.00395]
[1756103655064,1.1871922,112350.0,112340.0,0.00395]
[1756103655273,1.1871922,112350.0,112340.0,0.0028]
[1756103656123,1.1871922,112350.0,112340.0,0.0038]
[1756103656565,1.1896822,112350.0,112340.0,0.0028]
[1756103656778,6.49118752,112350.0,112340.0,0.0028]
[1756103656995,5.33056288,112350.0,112340.0,0.0028]
[1756103657206,5.9108752,112350.0,112340.0,0.0028]
[1756103657588,5.9118752,112350.0,112340.0,0.0028]
[1756103657809,5.9108752,112350.0,112340.0,0.0028]
[1756103658028,5.9108752,112350.0,112340.0,0.0018]
[1756103658487,0.63664888,112350.0,112340.0,0.0018]
[1756103658726,0.63664888,112350.0,112340.0,0.00395]
[1756103658727,1.3769612,112350.0,112340.0,0.00395]
[1756103658957,0.63466888,112350.0,112340.0,0.00694]
[1756103659176,1.28821645,112350.0,112340.0,0.00694]
[1756103659591,1.28921645,112350.0,112340.0,0.00694]
[1756103659820,1.28621645,112350.0,112340.0,0.00395]
[1756103660092,1.28825645,112350.0,112340.0,0.0018]
[1756103660315,1.28825645,112350.0,112340.0,0.0028]
[1756103661421,1.29069645,112350.0,112340.0,0.0028]
[1756103661639,1.28969645,112350.0,112340.0,0.0028]
[1756103662070,1.3765812,112350.0,112340.0,0.0038]
[1756103662493,1.3741412,112350.0,112340.0,0.0038]
[1756103662914,0.63370888,112350.0,112340.0,0.00595]
[1756103663122,0.70538413,112350.0,112340.0,0.00894]
[1756103663333,1.28569645,112350.0,112340.0,0.00894]
[1756103663698,1.28565645,112350.0,112340.0,0.00894]
[1756103664045,1.12713645,112350.0,112340.0,0.0038]
[1756103664277,1.12957645,112350.0,112340.0,0.0038]
[1756103664498,1.12713645,112350.0,112340.0,0.0038]
[1756103664991,1.28817645,112350.0,112340.0,0.0038]
[1756103665754,1.28817645,112350.0,112340.0,0.00595]
[1756103665991,1.12509645,112350.0,112340.0,0.00894]
[1756103666187,0.54478413,112350.0,112340.0,0.00894]
[1756103666642,1.12509645,112350.0,112340.0,0.00894]
[1756103667055,1.12509645,112350.0,112340.0,0.17002]
[1756103667056,0.54478413,112350.0,112340.0,0.17002]
[1756103667466,0.366769,112350.0,112340.0,0.17002]
[1756103667721,0.54478413,112350.0,112340.0,0.17002]
[1756103667923,0.026769,112350.0,112340.0,0.27548843]
[1756103668124,0.026769,112350.0,112340.0,0.27435377]
[1756103668703,0.026769,112350.0,112340.0,0.27335377]
[1756103669103,0.026769,112350.0,112340.0,0.11527377]
[1756103669302,0.026769,112350.0,112340.0,0.27559377]
[1756103669658,0.026769,112350.0,112340.0,0.27859377]
[1756103669871,0.026769,112350.0,112340.0,1.03693706]
[1756103670096,0.00048081,112370.0,112350.0,0.01744902]
[1756103670097,0.17846581,112370.0,112350.0,0.01744902]
[1756103670330,0.17846581,112370.0,112360.0,0.16646]
[1756103670887,0.20522181,112370.0,112360.0,0.16646]
[1756103671094,0.02723681,112370.0,112360.0,0.27079377]
[1756103672512,0.00164786,112380.0,112360.0,0.27079377]
[1756103672767,0.20636846,112380.0,112370.0,0.08987475]
[1756103672993,0.1779676,112380.0,112370.0,0.09202475]
[1756103673180,0.1779676,112380.0,112370.0,0.25318475]
[1756103677191,0.1779676,112380.0,112370.0,0.09202475]
[1756103677400,0.1800076,112380.0,112370.0,0.25310475]
[1756103677854,0.1779676,112380.0,112370.0,0.25310475]
[1756103678071,0.17798344,112370.0,112360.0,0.00303811]
[1756103678296,0.75829576,112370.0,112360.0,0.16626811]
[1756103678519,0.76033576,112370.0,112360.0,4.811e-05]
[1756103679179,1.10033576,112370.0,112360.0,4.811e-05]
[1756103679399,0.52002344,112370.0,112360.0,0.00104811]
[1756103679614,1.10033576,112370.0,112360.0,0.00104811]
[1756103679827,1.10033576,112370.0,112360.0,4.711e-05]
[1756103680252,1.12709476,112370.0,112360.0,4.711e-05]
[1756103680492,1.14202421,112370.0,112360.0,4.711e-05]
[1756103680711,0.56171189,112370.0,112360.0,4.711e-05]
[1756103680930,0.54778244,112370.0,112360.0,4.711e-05]
[1756103681137,1.13053476,112370.0,112360.0,4.711e-05]
[1756103681352,1.12809476,112370.0,112360.0,4.711e-05]
[1756103682219,1.21497951,112370.0,112360.0,4.711e-05]
[1756103682645,1.2549696,112370.0,112360.0,4.711e-05]
[1756103684349,1.26889991,112370.0,112360.0,4.711e-05]
[1756103684565,1.13998507,112370.0,112360.0,0.00518711]
[1756103684780,0.55967275,112370.0,112360.0,0.00518711]
[1756103686482,0.53291375,112370.0,112360.0,0.00518711]
[1756103690176,0.01493031,112370.0,112360.0,0.09207186]
[1756103690379,0.001,112370.0,112360.0,0.09207186]
[1756103691414,0.001,112370.0,112360.0,0.09429685]
[1756103692012,0.001,112370.0,112360.0,0.28974515]
[1756103692199,0.001,112370.0,112360.0,0.26964088]
[1756103692835,0.001,112370.0,112360.0,0.44764016]
[1756103693258,0.001,112370.0,112360.0,0.51612016]
[1756103693459,0.76125576,112370.0,112360.0,0.00209711]
[1756103693869,0.76125576,112370.0,112360.0,4.711e-05]
[1756103694638,1.10125576,112370.0,112360.0,4.711e-05]
[1756103694921,1.29043476,112370.0,112360.0,4.711e-05]
[1756103695247,1.30436399,112370.0,112360.0,4.711e-05]
[1756103696644,1.39124874,112370.0,112360.0,4.711e-05]
[1756103697394,0.81093642,112370.0,112360.0,4.711e-05]
[1756103697799,1.38774874,112370.0,112360.0,4.711e-05]
[1756103698114,1.38874874,112370.0,112360.0,4.711e-05]
[1756103698330,1.39324874,112370.0,112360.0,4.711e-05]
[1756103699394,1.39074874,112370.0,112360.0,4.711e-05]
[1756103700084,1.30386399,112370.0,112360.0,4.711e-05]
[1756103700301,0.56167167,112370.0,112360.0,0.00518711]
[1756103700513,1.14198399,112370.0,112360.0,0.00518711]
[1756103700750,1.14394399,112370.0,112360.0,0.00518711]
[1756103701175,1.14394399,112370.0,112360.0,4.711e-05]
[1756103701386,0.56363167,112370.0,112360.0,4.711e-05]
[1756103701594,1.14198399,112370.0,112360.0,0.00518711]
[1756103701796,1.14394399,112370.0,112360.0,4.711e-05]
[1756103702651,0.56363167,112370.0,112360.0,4.711e-05]
[1756103702855,1.14394399,112370.0,112360.0,4.711e-05]
[1756103704651,1.14394399,112370.0,112360.0,0.00209711]
[1756103705287,1.14394399,112370.0,112360.0,4.711e-05]
[1756103706752,1.14394399,112370.0,112360.0,0.00209711]
[1756103706965,1.14394399,112370.0,112360.0,4.711e-05]
[1756103707621,1.30358399,112370.0,112360.0,4.711e-05]
[1756103708035,1.14394399,112370.0,112360.0,4.711e-05]
[1756103708236,1.30398399,112370.0,112360.0,4.711e-05]
[1756103710624,1.30648399,112370.0,112360.0,4.711e-05]
[1756103710965,1.30398399,112370.0,112360.0,4.711e-05]
[1756103711833,1.30648399,112370.0,112360.0,4.711e-05]
[1756103714132,0.75832745,112350.0,112340.0,0.00504]
[1756103714344,0.75832745,112350.0,112340.0,0.00702]
[1756103714568,0.17801513,112350.0,112340.0,0.00378]
[1756103714793,0.20477613,112350.0,112340.0,0.00378]
[1756103715003,0.78508845,112350.0,112340.0,0.00702]
[1756103715426,0.78508845,112350.0,112340.0,0.00802]
[1756103716492,0.78508845,112350.0,112340.0,0.00902]
[1756103716901,0.20477613,112350.0,112340.0,0.00902]
[1756103717107,0.026761,112350.0,112340.0,0.00902]
[1756103717311,0.52116641,112360.0,112340.0,0.00906]
[1756103717536,1.12824073,112360.0,112350.0,0.00324]
[1756103717745,1.12824073,112360.0,112350.0,0.00522]
[1756103717948,1.10147873,112360.0,112350.0,0.00522]
[1756103718153,1.12824073,112360.0,112350.0,0.00198]
[1756103718558,0.17801513,112350.0,112340.0,0.00608]
[1756103718761,0.75832745,112350.0,112340.0,0.00806]
[1756103719182,0.17801513,112350.0,112340.0,0.00706]
[1756103719389,0.20477613,112350.0,112340.0,0.00706]
[1756103719812,0.20477613,112350.0,112340.0,0.00184]
[1756103719813,1.12508845,112350.0,112340.0,0.00184]
[1756103720027,1.28809845,112350.0,112340.0,0.00184]
[1756103720238,1.86841077,112350.0,112340.0,0.00184]
[1756103720881,1.86841077,112350.0,112340.0,0.00284]
[1756103721099,1.86841077,112350.0,112340.0,0.00384]
[1756103721318,1.86841077,112350.0,112340.0,0.00284]
[1756103721541,6.67648852,112350.0,112340.0,0.00284]
[1756103721760,6.51600852,112350.0,112340.0,0.00284]
[1756103721977,6.67976852,112350.0,112340.0,0.00284]
[1756103722189,6.67976852,112350.0,112340.0,0.00184]
[1756103722417,6.68176852,112350.0,112340.0,0.00184]
[1756103723977,6.69570141,112350.0,112340.0,0.00184]
[1756103724395,7.14410141,112350.0,112340.0,0.00184]
[1756103725718,7.14494141,112350.0,112340.0,0.00184]
[1756103727220,6.98334141,112350.0,112340.0,0.00184]
[1756103727431,7.14474141,112350.0,112340.0,0.00184]
[1756103727879,6.98334141,112350.0,112340.0,0.00184]
[1756103728091,1.84258609,112350.0,112340.0,0.00184]
[1756103728302,1.84508609,112350.0,112340.0,0.00184]
[1756103728511,2.42539841,112350.0,112340.0,0.00184]
[1756103728725,2.26407841,112350.0,112340.0,0.00184]
[1756103728962,2.42535841,112350.0,112340.0,0.00184]
[1756103729607,2.40124998,112350.0,112340.0,0.00184]
[1756103730707,7.2501774,112350.0,112340.0,0.00184]
[1756103730913,7.26673068,112350.0,112340.0,0.00184]
[1756103731134,7.25279779,112350.0,112340.0,0.00184]
[1756103731365,6.80439779,112350.0,112340.0,0.00184]
[1756103731610,6.81267283,112350.0,112340.0,0.00184]
[1756103731843,6.77710337,112350.0,112340.0,0.00184]
[1756103732311,6.77510337,112350.0,112340.0,0.00184]
[1756103732540,6.77810337,112350.0,112340.0,0.00184]
[1756103732771,6.76155009,112350.0,112340.0,0.00184]
[1756103733241,6.75855009,112350.0,112340.0,0.00184]
[1756103733477,5.3419791,112350.0,112340.0,0.00184]
[1756103733708,6.65629009,112350.0,112340.0,0.00184]
[1756103733939,6.65929009,112350.0,112340.0,0.00184]
[1756103734680,6.66179009,112350.0,112340.0,0.00184]
[1756103734898,6.49733009,112350.0,112340.0,0.00184]
[1756103735116,6.67572376,112350.0,112340.0,0.00184]
[1756103736266,6.68399584,112350.0,112340.0,0.00184]
[1756103736478,6.68399592,112350.0,112340.0,0.00184]
[1756103737575,1.09834329,112340.0,112330.0,0.20220826]
[1756103737784,1.18718804,112340.0,112330.0,0.20220826]
[1756103738008,1.35038804,112340.0,112330.0,0.20220826]
[1756103739062,1.18818804,112340.0,112330.0,0.20220826]
[1756103739277,1.35134804,112340.0,112330.0,0.20220826]
[1756103739492,1.36602884,112340.0,112330.0,0.20220826]
[1756103739704,1.36602884,112340.0,112330.0,0.20416826]
[1756103739921,1.36702884,112340.0,112330.0,0.20730826]
[1756103740135,1.36702884,112340.0,112330.0,0.20416826]
[1756103740345,1.36702884,112340.0,112330.0,0.20220826]
[1756103740793,1.20386884,112340.0,112330.0,0.20220826]
[1756103741010,1.36704884,112340.0,112330.0,0.20730826]
[1756103741429,1.36704884,112340.0,112330.0,0.20220826]
[1756103742106,1.36506884,112340.0,112330.0,0.20730826]
[1756103742316,1.81346884,112340.0,112330.0,0.20730826]
[1756103742531,1.65030884,112340.0,112330.0,0.20730826]
[1756103742752,0.79163097,112340.0,112330.0,0.20730826]
[1756103743012,1.38662409,112340.0,112330.0,0.20730826]
[1756103743190,1.81548884,112340.0,112330.0,0.20220826]
[1756103743649,1.81548884,112340.0,112330.0,0.20416826]
[1756103743861,1.22049572,112340.0,112330.0,0.20730826]
[1756103744079,2.06457196,112340.0,112330.0,1e-08]
[1756103744292,0.91681308,112340.0,112330.0,1e-08]
[1756103744514,2.12073438,112340.0,112330.0,1e-08]
[1756103745552,2.11973399,112340.0,112330.0,1e-08]
[1756103745777,2.11873399,112340.0,112330.0,1e-08]
[1756103745986,2.12273399,112340.0,112330.0,1e-08]
[1756103746196,0.93274775,112340.0,112330.0,1e-08]
[1756103746403,2.11873399,112340.0,112330.0,1e-08]
[1756103746818,2.12773399,112340.0,112330.0,1e-08]
[1756103747030,2.12273399,112340.0,112330.0,1e-08]
[1756103747438,2.12773399,112340.0,112330.0,1e-08]
[1756103748270,0.51804682,112330.0,112320.0,0.035]
[1756103748511,2.0348689,112330.0,112320.0,0.035]
[1756103749435,2.0378689,112330.0,112320.0,0.035]
[1756103749611,2.0420032,112330.0,112320.0,0.035]
[1756103749845,2.0687762,112330.0,112320.0,0.035]
[1756103750024,2.0687762,112330.0,112320.0,0.03696]
[1756103750370,2.07706949,112330.0,112320.0,0.03696]
[1756103750584,2.11632387,112330.0,112320.0,0.035]
[1756103751369,2.24654829,112330.0,112320.0,1e-08]
[1756103751784,0.51807853,112310.0,112300.0,0.00337759]
[1756103751986,1.3627964,112310.0,112300.0,0.00533759]
[1756103752993,1.3895724,112310.0,112300.0,0.00533759]
[1756103753233,1.3905724,112310.0,112300.0,0.00533759]
[1756103753561,1.3915724,112310.0,112300.0,0.00533759]
[1756103754404,1.3935624,112310.0,112300.0,0.00533759]
[1756103754598,1.40749938,112310.0,112300.0,0.00533759]
[1756103754800,1.40550938,112310.0,112300.0,0.00533759]
[1756103756294,1.44086231,112310.0,112300.0,0.00533759]
[1756103758059,1.27802231,112310.0,112300.0,0.00533759]
[1756103758264,1.44022231,112310.0,112300.0,0.00533759]
[1756103760676,1.35297756,112310.0,112300.0,0.00533759]
[1756103761090,0.75798444,112310.0,112300.0,0.00533759]
[1756103761304,1.35297756,112310.0,112300.0,0.00533759]
[1756103762604,1.19113756,112310.0,112300.0,0.00533759]
[1756103762810,0.99912058,112310.0,112300.0,0.00533759]
[1756103763017,1.33912058,112310.0,112300.0,0.00533759]
[1756103764513,1.34110058,112310.0,112300.0,0.00533759]
[1756103764915,1.33912058,112310.0,112300.0,0.00533759]
[1756103765987,1.47118811,112310.0,112300.0,0.00023759]